[Event "Titled Tuesday Blitz January 10 Late 2023"]
[White "Movahed, Sina"]
[Black "Mekhane, Adam"]
[WhiteFideId "42520835"]
[BlackFideId "36050601"]
[WhiteElo "2340"]
[BlackElo "2280"]
[Result "1-0"]
[Round "01"]
[TimeControl "180+2"]
[Date "2023.01.10"]
[WhiteClock "0:01:03"]
[BlackClock "0:00:07"]

1. e4 {[%clk 0:00:00]}  e5 {[%clk 0:00:00]} 2. Nf3 {[%clk 0:02:59]}  Nc6 {[%clk 0:02:58]} 3. Bb5 {[%clk 0:02:59]}  a6 {[%clk 0:02:58]} 4. Ba4 {[%clk 0:02:59]}  Nf6 {[%clk 0:02:53]} 5. O-O {[%clk 0:02:59]}  b5 {[%clk 0:02:53]} 6. Bb3 {[%clk 0:02:59]}  Be7 {[%clk 0:02:51]} 7. d3 {[%clk 0:02:59]}  d6 {[%clk 0:02:49]} 8. c3 {[%clk 0:02:58]}  O-O {[%clk 0:02:46]} 9. Re1 {[%clk 0:02:58]}  Bb7 {[%clk 0:02:45]} 10. Nbd2 {[%clk 0:02:56]}  Na5 {[%clk 0:02:44]} 11. Bc2 {[%clk 0:02:56]}  c5 {[%clk 0:02:38]} 12. Qe2 {[%clk 0:02:56]}  Re8 {[%clk 0:02:38]} 13. Nf1 {[%clk 0:02:56]}  Bf8 {[%clk 0:02:36]} 14. Ne3 {[%clk 0:02:56]}  g6 {[%clk 0:02:33]} 15. a4 {[%clk 0:02:56]}  Bg7 {[%clk 0:02:31]} 16. Bd2 {[%clk 0:02:53]}  c4 {[%clk 0:02:30]} 17. dxc4 {[%clk 0:02:39]}  Nxe4 {[%clk 0:02:15]} 18. cxb5 {[%clk 0:02:33]}  axb5 {[%clk 0:02:05]} 19. axb5 {[%clk 0:02:28]}  Nc5 {[%clk 0:01:41]} 20. b4 {[%clk 0:02:27]}  Ncb3 {[%clk 0:00:55]} 21. Rxa5 {[%clk 0:02:21]}  Nxa5 {[%clk 0:00:54]} 22. bxa5 {[%clk 0:01:45]}  Rxa5 {[%clk 0:00:52]} 23. c4 {[%clk 0:01:46]}  Ra8 {[%clk 0:00:47]} 24. Bb4 {[%clk 0:01:45]}  Qc7 {[%clk 0:00:37]} 25. Rd1 {[%clk 0:01:38]}  Red8 {[%clk 0:00:34]} 26. Nd2 {[%clk 0:01:22]}  f5 {[%clk 0:00:33]} 27. Bb3 {[%clk 0:01:20]}  Kh8 {[%clk 0:00:29]} 28. Nf3 {[%clk 0:01:19]}  h6 {[%clk 0:00:27]} 29. h4 {[%clk 0:01:14]}  Kh7 {[%clk 0:00:25]} 30. h5 {[%clk 0:01:11]}  Qf7 {[%clk 0:00:19]} 31. hxg6+ {[%clk 0:01:11]}  Qxg6 {[%clk 0:00:18]} 32. Nh4 {[%clk 0:01:11]}  Qg5 {[%clk 0:00:18]} 33. Nhxf5 {[%clk 0:01:11]}  Bf6 {[%clk 0:00:15]} 34. Nxd6 {[%clk 0:01:06]}  Rxd6 {[%clk 0:00:14]} 35. Bxd6 {[%clk 0:01:04]}  Rg8 {[%clk 0:00:09]} 36. c5 {[%clk 0:01:03]}  Bxg2 {[%clk 0:00:10]} 37. Bxg8+ {[%clk 0:01:03]}  Qxg8 {[%clk 0:00:07]} 38. Nxg2 {[%clk 0:01:03]} 1-0


[Site "https://www.chess.com"]

[Event "Titled Tuesday Blitz January 10 Late 2023"]
[White "Ongut, Tamas Gunes"]
[Black "Holt, Conrad"]
[WhiteFideId "770280"]
[BlackFideId "2034387"]
[WhiteElo "2299"]
[BlackElo "2540"]
[Result "1/2-1/2"]
[Round "01"]
[TimeControl "180+2"]
[Date "2023.01.10"]
[WhiteClock "0:00:17"]
[BlackClock "0:00:07"]

1. e4 {[%clk 0:00:00]}  e6 {[%clk 0:00:00]} 2. d4 {[%clk 0:02:59]}  d5 {[%clk 0:02:58]} 3. exd5 {[%clk 0:02:59]}  exd5 {[%clk 0:02:59]} 4. Nf3 {[%clk 0:02:58]}  Bd6 {[%clk 0:02:59]} 5. c4 {[%clk 0:02:58]}  Nf6 {[%clk 0:02:59]} 6. c5 {[%clk 0:02:59]}  Be7 {[%clk 0:02:59]} 7. Bd3 {[%clk 0:02:58]}  O-O {[%clk 0:02:59]} 8. O-O {[%clk 0:02:57]}  b6 {[%clk 0:02:58]} 9. cxb6 {[%clk 0:02:56]}  axb6 {[%clk 0:02:58]} 10. Ne5 {[%clk 0:02:55]}  c5 {[%clk 0:02:57]} 11. Bf4 {[%clk 0:02:56]}  c4 {[%clk 0:02:55]} 12. Bc2 {[%clk 0:02:54]}  b5 {[%clk 0:02:49]} 13. Nc3 {[%clk 0:02:52]}  b4 {[%clk 0:02:48]} 14. Nb5 {[%clk 0:02:45]}  Ba6 {[%clk 0:02:48]} 15. a4 {[%clk 0:02:45]}  bxa3 {[%clk 0:02:43]} 16. Nxa3 {[%clk 0:02:44]}  c3 {[%clk 0:02:33]} 17. Nb5 {[%clk 0:02:34]}  cxb2 {[%clk 0:02:32]} 18. Ra2 {[%clk 0:01:51]}  Bxb5 {[%clk 0:02:32]} 19. Rxa8 {[%clk 0:01:51]}  Bxf1 {[%clk 0:02:21]} 20. Qxf1 {[%clk 0:01:50]}  Qb6 {[%clk 0:02:20]} 21. Qb1 {[%clk 0:01:50]}  Qxd4 {[%clk 0:02:16]} 22. Nd3 {[%clk 0:01:43]}  Nc6 {[%clk 0:02:07]} 23. Rxf8+ {[%clk 0:01:42]}  Bxf8 {[%clk 0:01:53]} 24. Qxb2 {[%clk 0:01:41]}  Ne4 {[%clk 0:01:53]} 25. Qxd4 {[%clk 0:01:42]}  Nxd4 {[%clk 0:01:48]} 26. Bd1 {[%clk 0:01:30]}  Nc3 {[%clk 0:01:47]} 27. Be5 {[%clk 0:01:30]}  Ndb5 {[%clk 0:01:45]} 28. Bxc3 {[%clk 0:01:26]}  Nxc3 {[%clk 0:01:25]} 29. Bf3 {[%clk 0:01:22]}  Bd6 {[%clk 0:01:24]} 30. Kf1 {[%clk 0:01:23]}  f5 {[%clk 0:01:23]} 31. g3 {[%clk 0:01:14]}  Kf7 {[%clk 0:01:21]} 32. Ke1 {[%clk 0:01:14]}  g5 {[%clk 0:01:20]} 33. Kd2 {[%clk 0:01:15]}  Ne4+ {[%clk 0:01:19]} 34. Ke2 {[%clk 0:01:15]}  g4 {[%clk 0:01:18]} 35. Bg2 {[%clk 0:01:00]}  d4 {[%clk 0:01:06]} 36. h3 {[%clk 0:00:57]}  Ke6 {[%clk 0:01:01]} 37. hxg4 {[%clk 0:00:56]}  Nc3+ {[%clk 0:00:54]} 38. Kd2 {[%clk 0:00:54]}  fxg4 {[%clk 0:00:54]} 39. Bb7 {[%clk 0:00:54]}  h5 {[%clk 0:00:54]} 40. f3 {[%clk 0:00:51]}  Kf5 {[%clk 0:00:44]} 41. Bc8+ {[%clk 0:00:51]}  Kg5 {[%clk 0:00:32]} 42. f4+ {[%clk 0:00:48]}  Kg6 {[%clk 0:00:32]} 43. Nf2 {[%clk 0:00:33]}  h4 {[%clk 0:00:25]} 44. f5+ {[%clk 0:00:34]}  Kg5 {[%clk 0:00:20]} 45. gxh4+ {[%clk 0:00:26]}  Kxh4 {[%clk 0:00:17]} 46. Bb7 {[%clk 0:00:24]}  Be5 {[%clk 0:00:18]} 47. Ne4 {[%clk 0:00:19]}  Nb5 {[%clk 0:00:14]} 48. Kd3 {[%clk 0:00:18]}  Nc7 {[%clk 0:00:12]} 49. Nd2 {[%clk 0:00:18]}  Kg5 {[%clk 0:00:11]} 50. Bc8 {[%clk 0:00:16]}  Ne8 {[%clk 0:00:10]} 51. Ne4+ {[%clk 0:00:13]}  Kf4 {[%clk 0:00:10]} 52. Bd7 {[%clk 0:00:13]}  Nf6 {[%clk 0:00:10]} 53. Nxf6 {[%clk 0:00:12]}  Bxf6 {[%clk 0:00:08]} 54. Ke2 {[%clk 0:00:12]}  g3 {[%clk 0:00:09]} 55. Kf1 {[%clk 0:00:10]}  Kf3 {[%clk 0:00:08]} 56. Bb5 {[%clk 0:00:09]}  g2+ {[%clk 0:00:07]} 57. Kg1 {[%clk 0:00:09]}  d3 {[%clk 0:00:05]} 58. Bc6+ {[%clk 0:00:09]}  Ke3 {[%clk 0:00:05]} 59. Kxg2 {[%clk 0:00:09]}  d2 {[%clk 0:00:04]} 60. Ba4 {[%clk 0:00:09]}  Ke4 {[%clk 0:00:03]} 61. Bd1 {[%clk 0:00:09]}  Kxf5 {[%clk 0:00:04]} 62. Kf2 {[%clk 0:00:09]}  Bg5 {[%clk 0:00:04]} 63. Ke2 {[%clk 0:00:10]}  Ke5 {[%clk 0:00:04]} 64. Kd3 {[%clk 0:00:11]}  Bh6 {[%clk 0:00:05]} 65. Kc2 {[%clk 0:00:11]}  Bg5 {[%clk 0:00:04]} 66. Bh5 {[%clk 0:00:12]}  Bh6 {[%clk 0:00:05]} 67. Bd1 {[%clk 0:00:13]}  Bg5 {[%clk 0:00:05]} 68. Bh5 {[%clk 0:00:14]}  Kd4 {[%clk 0:00:06]} 69. Bd1 {[%clk 0:00:14]}  Bh6 {[%clk 0:00:06]} 70. Bh5 {[%clk 0:00:15]}  Bg5 {[%clk 0:00:06]} 71. Bd1 {[%clk 0:00:16]}  Bh6 {[%clk 0:00:07]} 72. Bh5 {[%clk 0:00:17]}  Bg5 {[%clk 0:00:07]} 1/2-1/2


[Site "https://www.chess.com"]

[Event "Titled Tuesday Blitz January 10 Late 2023"]
[White "Arenas, David"]
[Black "Ibarra Jerez, Jose Carlos"]
[WhiteFideId "4403177"]
[BlackFideId "2226332"]
[WhiteElo "2426"]
[BlackElo "2563"]
[Result "0-1"]
[Round "01"]
[TimeControl "180+2"]
[Date "2023.01.10"]
[WhiteClock "0:01:01"]
[BlackClock "0:00:53"]

1. e4 {[%clk 0:00:00]}  c5 {[%clk 0:00:00]} 2. Nf3 {[%clk 0:02:59]}  Nc6 {[%clk 0:02:57]} 3. Nc3 {[%clk 0:02:58]}  Nf6 {[%clk 0:02:58]} 4. d4 {[%clk 0:02:57]}  cxd4 {[%clk 0:02:55]} 5. Nxd4 {[%clk 0:02:57]}  e6 {[%clk 0:02:54]} 6. Ndb5 {[%clk 0:02:58]}  Bc5 {[%clk 0:02:55]} 7. Bf4 {[%clk 0:02:58]}  O-O {[%clk 0:02:54]} 8. Bd6 {[%clk 0:02:43]}  Qb6 {[%clk 0:02:53]} 9. Bxc5 {[%clk 0:02:38]}  Qxc5 {[%clk 0:02:50]} 10. Qd6 {[%clk 0:02:36]}  Qb6 {[%clk 0:02:49]} 11. Be2 {[%clk 0:02:36]}  a6 {[%clk 0:02:50]} 12. Qc7 {[%clk 0:02:16]}  Qxc7 {[%clk 0:02:49]} 13. Nxc7 {[%clk 0:02:08]}  Ra7 {[%clk 0:02:31]} 14. f4 {[%clk 0:02:09]}  d6 {[%clk 0:02:31]} 15. O-O-O {[%clk 0:02:01]}  b6 {[%clk 0:01:58]} 16. Nxa6 {[%clk 0:01:51]}  Bxa6 {[%clk 0:01:54]} 17. Bxa6 {[%clk 0:01:52]}  Rxa6 {[%clk 0:01:54]} 18. Rxd6 {[%clk 0:01:53]}  Rc8 {[%clk 0:01:54]} 19. Rhd1 {[%clk 0:01:53]}  Kf8 {[%clk 0:01:51]} 20. e5 {[%clk 0:01:51]}  Ne8 {[%clk 0:01:47]} 21. Rd7 {[%clk 0:01:46]}  Ra7 {[%clk 0:01:28]} 22. Rxa7 {[%clk 0:01:41]}  Nxa7 {[%clk 0:01:27]} 23. Rd7 {[%clk 0:01:25]}  Rc7 {[%clk 0:01:27]} 24. Rd8 {[%clk 0:01:25]}  Ke7 {[%clk 0:01:27]} 25. Ra8 {[%clk 0:01:25]}  Rb7 {[%clk 0:01:26]} 26. Ne4 {[%clk 0:01:25]}  Rc7 {[%clk 0:01:19]} 27. Rb8 {[%clk 0:01:20]}  Nc8 {[%clk 0:01:01]} 28. a4 {[%clk 0:01:08]}  Kd7 {[%clk 0:00:59]} 29. b3 {[%clk 0:01:03]}  Ra7 {[%clk 0:00:57]} 30. Kb2 {[%clk 0:01:01]}  Kc7 {[%clk 0:00:53]} 0-1


[Site "https://www.chess.com"]

[Event "Titled Tuesday Blitz January 10 Late 2023"]
[White "Kozak, Adam"]
[Black "Kaplan, Avi Harrison"]
[WhiteFideId "753246"]
[BlackFideId "30934559"]
[WhiteElo "2572"]
[BlackElo "2146"]
[Result "0-1"]
[Round "01"]
[TimeControl "180+2"]
[Date "2023.01.10"]
[WhiteClock "0:00:01"]
[BlackClock "0:00:04"]

1. b3 {[%clk 0:00:00]}  e5 {[%clk 0:00:00]} 2. Bb2 {[%clk 0:02:56]}  d6 {[%clk 0:02:58]} 3. e3 {[%clk 0:02:56]}  c5 {[%clk 0:02:58]} 4. c4 {[%clk 0:02:56]}  Nc6 {[%clk 0:02:57]} 5. g3 {[%clk 0:02:55]}  Be6 {[%clk 0:02:57]} 6. Bg2 {[%clk 0:02:56]}  Qd7 {[%clk 0:02:56]} 7. Nc3 {[%clk 0:02:56]}  Be7 {[%clk 0:02:55]} 8. Nd5 {[%clk 0:02:55]}  Nf6 {[%clk 0:02:54]} 9. Nxf6+ {[%clk 0:02:53]}  Bxf6 {[%clk 0:02:50]} 10. Ne2 {[%clk 0:02:44]}  O-O {[%clk 0:02:47]} 11. O-O {[%clk 0:02:44]}  Bh3 {[%clk 0:02:47]} 12. f4 {[%clk 0:02:43]}  Bxg2 {[%clk 0:02:47]} 13. Kxg2 {[%clk 0:02:43]}  Rfe8 {[%clk 0:02:46]} 14. Nc3 {[%clk 0:02:42]}  exf4 {[%clk 0:02:44]} 15. Rxf4 {[%clk 0:02:33]}  Nb4 {[%clk 0:02:40]} 16. Rxf6 {[%clk 0:02:33]}  gxf6 {[%clk 0:02:28]} 17. Qf1 {[%clk 0:02:28]}  d5 {[%clk 0:02:22]} 18. a3 {[%clk 0:02:28]}  dxc4 {[%clk 0:02:04]} 19. axb4 {[%clk 0:02:06]}  Qxd2+ {[%clk 0:01:52]} 20. Qf2 {[%clk 0:01:42]}  Rad8 {[%clk 0:01:42]} 21. bxc4 {[%clk 0:01:42]}  Qxf2+ {[%clk 0:01:27]} 22. Kxf2 {[%clk 0:00:52]}  Rd2+ {[%clk 0:01:25]} 23. Kf3 {[%clk 0:00:53]}  Rxb2 {[%clk 0:01:25]} 24. Nd5 {[%clk 0:00:53]}  Kg7 {[%clk 0:01:25]} 25. Rxa7 {[%clk 0:00:54]}  cxb4 {[%clk 0:01:20]} 26. Rxb7 {[%clk 0:00:44]}  b3 {[%clk 0:01:19]} 27. c5 {[%clk 0:00:44]}  Rc8 {[%clk 0:01:19]} 28. Nf4 {[%clk 0:00:44]}  Kf8 {[%clk 0:01:15]} 29. Rb5 {[%clk 0:00:41]}  Ke7 {[%clk 0:01:03]} 30. h4 {[%clk 0:00:40]}  Rb1 {[%clk 0:00:54]} 31. Kg4 {[%clk 0:00:33]}  Kd7 {[%clk 0:00:43]} 32. Ne2 {[%clk 0:00:27]}  b2 {[%clk 0:00:36]} 33. Nd4 {[%clk 0:00:24]}  Rg8+ {[%clk 0:00:29]} 34. Kh5 {[%clk 0:00:20]}  Kc7 {[%clk 0:00:20]} 35. c6 {[%clk 0:00:20]}  Rb8 {[%clk 0:00:17]} 36. Rd5 {[%clk 0:00:20]}  Re1 {[%clk 0:00:16]} 37. Rd7+ {[%clk 0:00:13]}  Kb6 {[%clk 0:00:10]} 38. c7 {[%clk 0:00:13]}  Rc8 {[%clk 0:00:05]} 39. Rd8 {[%clk 0:00:13]}  Rxc7 {[%clk 0:00:05]} 40. Rb8+ {[%clk 0:00:12]}  Rb7 {[%clk 0:00:04]} 41. Rc8 {[%clk 0:00:12]}  b1=Q {[%clk 0:00:05]} 42. Rc6+ {[%clk 0:00:11]}  Ka7 {[%clk 0:00:05]} 43. Rxf6 {[%clk 0:00:10]}  Rxe3 {[%clk 0:00:05]} 44. Nf5 {[%clk 0:00:11]}  Re5 {[%clk 0:00:05]} 45. g4 {[%clk 0:00:10]}  Rxf5+ {[%clk 0:00:04]} 46. gxf5 {[%clk 0:00:11]}  Rb6 {[%clk 0:00:05]} 47. Rxf7+ {[%clk 0:00:12]}  Rb7 {[%clk 0:00:05]} 48. Rf6 {[%clk 0:00:12]}  Qb2 {[%clk 0:00:05]} 49. Re6 {[%clk 0:00:13]}  Qb3 {[%clk 0:00:03]} 50. Kg5 {[%clk 0:00:12]}  Qd5 {[%clk 0:00:03]} 51. h5 {[%clk 0:00:11]}  Rb5 {[%clk 0:00:04]} 52. Rf6 {[%clk 0:00:08]}  Qg2+ {[%clk 0:00:04]} 53. Kh6 {[%clk 0:00:07]}  Rb7 {[%clk 0:00:04]} 54. Rg6 {[%clk 0:00:07]}  hxg6 {[%clk 0:00:04]} 55. fxg6 {[%clk 0:00:01]}  Qd2# {[%clk 0:00:04]} 0-1


[Site "https://www.chess.com"]

[Event "Titled Tuesday Blitz January 10 Late 2023"]
[White "Novikov, Evgenij"]
[Black "Bacrot, Etienne"]
[WhiteFideId "4125380"]
[BlackFideId "605506"]
[WhiteElo "2276"]
[BlackElo "2667"]
[Result "0-1"]
[Round "01"]
[TimeControl "180+2"]
[Date "2023.01.10"]
[WhiteClock "0:00:09"]
[BlackClock "0:01:33"]

1. d4 {[%clk 0:00:00]}  Nf6 {[%clk 0:00:00]} 2. c4 {[%clk 0:02:59]}  e6 {[%clk 0:02:59]} 3. a3 {[%clk 0:02:57]}  d5 {[%clk 0:02:59]} 4. cxd5 {[%clk 0:02:55]}  exd5 {[%clk 0:02:59]} 5. Nc3 {[%clk 0:02:53]}  Be7 {[%clk 0:02:59]} 6. Bg5 {[%clk 0:02:54]}  O-O {[%clk 0:03:00]} 7. e3 {[%clk 0:02:51]}  c6 {[%clk 0:03:00]} 8. Bd3 {[%clk 0:02:46]}  Ne4 {[%clk 0:03:01]} 9. Bf4 {[%clk 0:02:45]}  Bf5 {[%clk 0:03:00]} 10. Nge2 {[%clk 0:02:37]}  Nd7 {[%clk 0:02:56]} 11. O-O {[%clk 0:02:34]}  Re8 {[%clk 0:02:55]} 12. f3 {[%clk 0:02:26]}  Nxc3 {[%clk 0:02:52]} 13. bxc3 {[%clk 0:02:20]}  Bg6 {[%clk 0:02:50]} 14. Bg3 {[%clk 0:02:12]}  Nb6 {[%clk 0:02:50]} 15. e4 {[%clk 0:02:01]}  Rc8 {[%clk 0:02:48]} 16. e5 {[%clk 0:01:50]}  c5 {[%clk 0:02:34]} 17. f4 {[%clk 0:01:42]}  cxd4 {[%clk 0:02:32]} 18. cxd4 {[%clk 0:01:38]}  Nc4 {[%clk 0:02:27]} 19. Bxg6 {[%clk 0:01:37]}  hxg6 {[%clk 0:02:22]} 20. Rf3 {[%clk 0:01:18]}  Qd7 {[%clk 0:02:23]} 21. Be1 {[%clk 0:01:09]}  Rc6 {[%clk 0:02:22]} 22. Bb4 {[%clk 0:01:01]}  Rec8 {[%clk 0:02:15]} 23. Bxe7 {[%clk 0:01:00]}  Qxe7 {[%clk 0:02:14]} 24. Ng3 {[%clk 0:00:58]}  Nb2 {[%clk 0:02:15]} 25. Qf1 {[%clk 0:00:53]}  Qh4 {[%clk 0:02:07]} 26. Rb1 {[%clk 0:00:46]}  Nc4 {[%clk 0:02:04]} 27. Qf2 {[%clk 0:00:39]}  Nb6 {[%clk 0:02:03]} 28. h3 {[%clk 0:00:31]}  Rc2 {[%clk 0:02:01]} 29. Qe1 {[%clk 0:00:27]}  Nc4 {[%clk 0:02:00]} 30. Rd1 {[%clk 0:00:20]}  Nb2 {[%clk 0:01:55]} 31. Rb1 {[%clk 0:00:16]}  Nc4 {[%clk 0:01:53]} 32. Kh2 {[%clk 0:00:16]}  Nd2 {[%clk 0:01:48]} 33. Rbb3 {[%clk 0:00:15]}  Nxb3 {[%clk 0:01:47]} 34. Rxb3 {[%clk 0:00:13]}  Qxf4 {[%clk 0:01:44]} 35. e6 {[%clk 0:00:11]}  fxe6 {[%clk 0:01:44]} 36. Qxe6+ {[%clk 0:00:09]}  Kh7 {[%clk 0:01:41]} 37. Rxb7 {[%clk 0:00:10]}  R8c7 {[%clk 0:01:41]} 38. Qxd5 {[%clk 0:00:09]}  Rxb7 {[%clk 0:01:35]} 39. Qxb7 {[%clk 0:00:08]}  Rc3 {[%clk 0:01:33]} 40. Qf3 {[%clk 0:00:09]}  Rxf3 {[%clk 0:01:33]} 0-1


[Site "https://www.chess.com"]

[Event "Titled Tuesday Blitz January 10 Late 2023"]
[White "Vasquez Schroeder, Rodrigo"]
[Black "Hansen, Torbjorn Ringdal"]
[WhiteFideId "3400042"]
[BlackFideId "1501720"]
[WhiteElo "2524"]
[BlackElo "2432"]
[Result "0-1"]
[Round "01"]
[TimeControl "180+2"]
[Date "2023.01.10"]
[WhiteClock "0:00:12"]
[BlackClock "0:00:26"]

1. e4 {[%clk 0:00:00]}  c6 {[%clk 0:00:00]} 2. d4 {[%clk 0:02:56]}  d5 {[%clk 0:03:00]} 3. exd5 {[%clk 0:02:53]}  cxd5 {[%clk 0:03:00]} 4. c4 {[%clk 0:02:53]}  Nf6 {[%clk 0:03:00]} 5. Nc3 {[%clk 0:02:54]}  g6 {[%clk 0:02:59]} 6. cxd5 {[%clk 0:02:54]}  Bg7 {[%clk 0:02:59]} 7. Bc4 {[%clk 0:02:54]}  O-O {[%clk 0:02:53]} 8. Nge2 {[%clk 0:02:53]}  Nbd7 {[%clk 0:02:53]} 9. Nf4 {[%clk 0:02:54]}  Nb6 {[%clk 0:02:47]} 10. Bb3 {[%clk 0:02:53]}  Bg4 {[%clk 0:02:47]} 11. f3 {[%clk 0:02:53]}  Bf5 {[%clk 0:02:41]} 12. h4 {[%clk 0:02:53]}  Rc8 {[%clk 0:02:41]} 13. g4 {[%clk 0:02:45]}  Bd7 {[%clk 0:02:38]} 14. h5 {[%clk 0:02:44]}  Nc4 {[%clk 0:02:37]} 15. Qd3 {[%clk 0:02:44]}  b5 {[%clk 0:02:30]} 16. a4 {[%clk 0:02:25]}  a6 {[%clk 0:02:28]} 17. axb5 {[%clk 0:02:18]}  Bxb5 {[%clk 0:02:24]} 18. hxg6 {[%clk 0:02:18]}  hxg6 {[%clk 0:02:16]} 19. Qc2 {[%clk 0:02:00]}  Qd6 {[%clk 0:02:13]} 20. g5 {[%clk 0:01:35]}  Nh5 {[%clk 0:02:01]} 21. Ne4 {[%clk 0:01:31]}  Qb6 {[%clk 0:01:44]} 22. Nxh5 {[%clk 0:01:25]}  gxh5 {[%clk 0:01:25]} 23. Rxh5 {[%clk 0:01:25]}  Rfe8 {[%clk 0:01:18]} 24. Nc5 {[%clk 0:01:18]}  Rxc5 {[%clk 0:01:18]} 25. dxc5 {[%clk 0:01:02]}  Qxc5 {[%clk 0:01:13]} 26. Qh7+ {[%clk 0:00:57]}  Kf8 {[%clk 0:01:13]} 27. Rh1 {[%clk 0:00:35]}  e6 {[%clk 0:01:12]} 28. d6 {[%clk 0:00:31]}  Qb4+ {[%clk 0:01:05]} 29. Kf2 {[%clk 0:00:26]}  Qxb3 {[%clk 0:00:56]} 30. Kg3 {[%clk 0:00:26]}  Qb4 {[%clk 0:00:56]} 31. Bf4 {[%clk 0:00:21]}  e5 {[%clk 0:00:46]} 32. Bc1 {[%clk 0:00:19]}  Qxd6 {[%clk 0:00:47]} 33. Rh6 {[%clk 0:00:19]}  Qd4 {[%clk 0:00:46]} 34. Kg2 {[%clk 0:00:18]}  Nd2 {[%clk 0:00:40]} 35. Rh1 {[%clk 0:00:17]}  e4 {[%clk 0:00:36]} 36. f4 {[%clk 0:00:13]}  e3 {[%clk 0:00:31]} 37. Rh6 {[%clk 0:00:11]}  Qd5+ {[%clk 0:00:29]} 38. Kg3 {[%clk 0:00:12]}  Qf3+ {[%clk 0:00:26]} 0-1


[Site "https://www.chess.com"]

[Event "Titled Tuesday Blitz January 10 Late 2023"]
[White "Novikova, Galina"]
[Black "Pakleza, Zbigniew"]
[WhiteFideId "4157095"]
[BlackFideId "1119290"]
[WhiteElo "2073"]
[BlackElo "2494"]
[Result "0-1"]
[Round "01"]
[TimeControl "180+2"]
[Date "2023.01.10"]
[WhiteClock "0:00:01"]
[BlackClock "0:00:13"]

1. e4 {[%clk 0:00:00]}  d6 {[%clk 0:00:00]} 2. d4 {[%clk 0:02:50]}  Nf6 {[%clk 0:03:00]} 3. Nc3 {[%clk 0:02:49]}  c6 {[%clk 0:03:00]} 4. f3 {[%clk 0:02:49]}  Qb6 {[%clk 0:03:01]} 5. Bc4 {[%clk 0:02:49]}  e6 {[%clk 0:03:01]} 6. Nge2 {[%clk 0:02:36]}  d5 {[%clk 0:03:00]} 7. Bd3 {[%clk 0:02:36]}  c5 {[%clk 0:03:00]} 8. e5 {[%clk 0:02:34]}  Nfd7 {[%clk 0:02:48]} 9. Na4 {[%clk 0:01:56]}  Qa5+ {[%clk 0:02:41]} 10. c3 {[%clk 0:01:39]}  cxd4 {[%clk 0:02:39]} 11. b4 {[%clk 0:01:40]}  Qc7 {[%clk 0:02:23]} 12. cxd4 {[%clk 0:01:39]}  Bxb4+ {[%clk 0:02:23]} 13. Bd2 {[%clk 0:01:35]}  Qa5 {[%clk 0:02:21]} 14. Nac3 {[%clk 0:01:35]}  Qd8 {[%clk 0:02:14]} 15. O-O {[%clk 0:01:34]}  O-O {[%clk 0:01:57]} 16. f4 {[%clk 0:01:30]}  f5 {[%clk 0:01:56]} 17. g4 {[%clk 0:01:26]}  g6 {[%clk 0:01:54]} 18. gxf5 {[%clk 0:01:04]}  gxf5 {[%clk 0:01:31]} 19. Kh1 {[%clk 0:01:03]}  Kh8 {[%clk 0:01:32]} 20. Rg1 {[%clk 0:01:03]}  Nc6 {[%clk 0:01:31]} 21. Qf1 {[%clk 0:00:55]}  Qh4 {[%clk 0:01:27]} 22. Rg3 {[%clk 0:00:48]}  Nb6 {[%clk 0:01:07]} 23. Qg2 {[%clk 0:00:46]}  Bd7 {[%clk 0:00:43]} 24. Rh3 {[%clk 0:00:39]}  Qe7 {[%clk 0:00:37]} 25. Rg1 {[%clk 0:00:34]}  Rg8 {[%clk 0:00:34]} 26. Rg3 {[%clk 0:00:28]}  Qf7 {[%clk 0:00:34]} 27. Qf2 {[%clk 0:00:27]}  Nc4 {[%clk 0:00:27]} 28. Be1 {[%clk 0:00:21]}  a6 {[%clk 0:00:22]} 29. Qf3 {[%clk 0:00:09]}  Be7 {[%clk 0:00:22]} 30. Qf2 {[%clk 0:00:01]}  Rxg3 {[%clk 0:00:21]} 31. Nxg3 {[%clk 0:00:02]}  Rg8 {[%clk 0:00:18]} 32. Bf1 {[%clk 0:00:01]}  Bh4 {[%clk 0:00:15]} 33. Bg2 {[%clk 0:00:01]}  b5 {[%clk 0:00:15]} 34. Qf3 {[%clk 0:00:01]}  Be8 {[%clk 0:00:13]} 0-1


[Site "https://www.chess.com"]

[Event "Titled Tuesday Blitz January 10 Late 2023"]
[White "Putnam, Liam"]
[Black "Dudzinski, Pawel"]
[WhiteFideId "30938279"]
[BlackFideId "1117890"]
[WhiteElo "2285"]
[BlackElo "2186"]
[Result "1-0"]
[Round "01"]
[TimeControl "180+2"]
[Date "2023.01.10"]
[WhiteClock "0:00:37"]
[BlackClock "0:00:04"]

1. a3 {[%clk 0:00:00]}  g6 {[%clk 0:00:00]} 2. Nf3 {[%clk 0:02:58]}  Bg7 {[%clk 0:02:58]} 3. e3 {[%clk 0:02:57]}  e5 {[%clk 0:02:58]} 4. d4 {[%clk 0:02:56]}  e4 {[%clk 0:02:59]} 5. Nfd2 {[%clk 0:02:55]}  d5 {[%clk 0:02:59]} 6. c4 {[%clk 0:02:56]}  c6 {[%clk 0:02:58]} 7. Nc3 {[%clk 0:02:56]}  f5 {[%clk 0:02:59]} 8. Be2 {[%clk 0:02:57]}  Nf6 {[%clk 0:02:58]} 9. b4 {[%clk 0:02:53]}  Be6 {[%clk 0:02:57]} 10. Bb2 {[%clk 0:02:53]}  O-O {[%clk 0:02:55]} 11. Rc1 {[%clk 0:02:51]}  Nbd7 {[%clk 0:02:49]} 12. cxd5 {[%clk 0:02:52]}  Nxd5 {[%clk 0:02:48]} 13. Nc4 {[%clk 0:02:50]}  Nxc3 {[%clk 0:02:35]} 14. Bxc3 {[%clk 0:02:46]}  Nb6 {[%clk 0:02:25]} 15. Na5 {[%clk 0:02:46]}  Qd7 {[%clk 0:02:25]} 16. O-O {[%clk 0:02:37]}  Nd5 {[%clk 0:02:13]} 17. Bb2 {[%clk 0:02:29]}  f4 {[%clk 0:02:02]} 18. exf4 {[%clk 0:02:27]}  Nxf4 {[%clk 0:02:00]} 19. Bc4 {[%clk 0:02:22]}  Rad8 {[%clk 0:02:00]} 20. Qb3 {[%clk 0:02:22]}  Rf7 {[%clk 0:01:45]} 21. Bxe6 {[%clk 0:02:18]}  Qxe6 {[%clk 0:01:02]} 22. Qxe6 {[%clk 0:02:12]}  Nxe6 {[%clk 0:01:01]} 23. Rfe1 {[%clk 0:02:10]}  Bxd4 {[%clk 0:01:01]} 24. Bxd4 {[%clk 0:02:05]}  Rxd4 {[%clk 0:00:59]} 25. Nb3 {[%clk 0:01:58]}  Rd3 {[%clk 0:01:00]} 26. Rb1 {[%clk 0:01:47]}  Nd4 {[%clk 0:00:59]} 27. Nc5 {[%clk 0:01:48]}  Rxa3 {[%clk 0:00:40]} 28. Rxe4 {[%clk 0:01:43]}  Nc2 {[%clk 0:00:38]} 29. h4 {[%clk 0:01:42]}  b6 {[%clk 0:00:28]} 30. Ne6 {[%clk 0:01:35]}  Re7 {[%clk 0:00:17]} 31. Rd1 {[%clk 0:01:30]}  Ra1 {[%clk 0:00:15]} 32. Rxa1 {[%clk 0:01:28]}  Nxa1 {[%clk 0:00:15]} 33. Re3 {[%clk 0:01:27]}  Nc2 {[%clk 0:00:16]} 34. Rc3 {[%clk 0:01:14]}  Nxb4 {[%clk 0:00:15]} 35. Ng5 {[%clk 0:01:08]}  Re1+ {[%clk 0:00:13]} 36. Kh2 {[%clk 0:01:07]}  c5 {[%clk 0:00:12]} 37. Rf3 {[%clk 0:01:07]}  Re7 {[%clk 0:00:12]} 38. Rf6 {[%clk 0:01:05]}  Rc7 {[%clk 0:00:12]} 39. Rd6 {[%clk 0:01:05]}  Rc8 {[%clk 0:00:12]} 40. Rd7 {[%clk 0:01:04]}  c4 {[%clk 0:00:08]} 41. Nxh7 {[%clk 0:01:04]}  Rc6 {[%clk 0:00:08]} 42. Ng5 {[%clk 0:01:01]}  c3 {[%clk 0:00:07]} 43. Rd8+ {[%clk 0:00:54]}  Kg7 {[%clk 0:00:07]} 44. Rd7+ {[%clk 0:00:54]}  Kf6 {[%clk 0:00:07]} 45. f4 {[%clk 0:00:54]}  Kf5 {[%clk 0:00:05]} 46. Rf7+ {[%clk 0:00:55]}  Kg4 {[%clk 0:00:03]} 47. Ne4 {[%clk 0:00:37]}  c2 {[%clk 0:00:04]} 48. Nf2+ {[%clk 0:00:37]}  Kxh4 {[%clk 0:00:04]} 49. Rh7# {[%clk 0:00:37]} 1-0


[Site "https://www.chess.com"]